bitfinex-derivatives/quotes_BNBF0:USTF0_20250329
["timestamp","ask_amount","ask_price","bid_price","bid_amount"]
[1743271058171,1.512,599.96,599.37,0.29010033]
[1743271058571,1.512,599.96,599.45,1.24545519]
[1743271060972,1.512,599.96,599.52,1.24545519]
[1743271062870,1.512,599.96,599.58,1.24545519]
[1743271064875,1.475,599.95,599.54,1.24545519]
[1743271067077,1.475,599.95,599.63,1.24545519]
[1743271068880,1.475,599.95,599.65,1.24545519]
[1743271070774,1.475,599.95,599.77,1.24545519]
[1743271072780,1.475,599.95,599.83,1.24545519]
[1743271074976,1.475,599.95,599.84,1.24545519]
[1743271077483,1.475,599.95,599.75,1.24545519]
[1743271079879,1.475,599.95,599.61,1.24545519]
[1743271081580,1.475,599.95,599.6,1.24545519]
[1743271083187,1.475,599.95,599.59,0.29009428]
[1743271083188,1.475,599.95,599.64,1.24545519]
[1743271085387,1.475,599.95,599.54,1.24545519]
[1743271085894,1.475,599.95,599.61,0.29007735]
[1743271086188,1.475,599.95,599.54,1.24545519]
[1743271086391,1.475,599.95,599.61,0.29007856]
[1743271086587,1.475,599.95,599.54,1.24545519]
[1743271087289,1.475,599.95,599.43,1.24545519]
[1743271087586,1.475,599.95,599.55,0.29007735]
[1743271087893,1.475,599.95,599.44,0.33364473]
[1743271088084,2.516,599.95,599.55,0.29008944]
[1743271088286,2.516,599.95,599.44,0.33364473]
[1743271088589,2.516,599.95,599.55,0.29008824]
[1743271088992,2.516,599.95,599.47,1.24545519]
[1743271089188,2.516,599.95,599.55,0.29007735]
[1743271089690,2.516,599.95,599.47,1.24545519]
[1743271089894,2.516,599.95,599.55,0.29008098]
[1743271090093,2.516,599.95,599.47,1.24545519]
[1743271090494,2.516,599.95,599.55,0.29006647]
[1743271090789,2.516,599.95,599.56,0.33357795]
[1743271093397,2.516,599.95,599.84,1.24545519]
[1743271093991,1.041,599.95,599.84,1.24545519]
[1743271095400,1.041,599.95,599.83,1.24545519]
[1743271097606,1.041,599.95,599.87,1.24545519]
[1743271099002,1.041,599.95,599.86,1.24545519]
[1743271101207,1.041,599.95,599.75,1.24545519]
[1743271103414,1.041,599.95,599.81,1.24545519]
[1743271104711,1.041,599.95,599.8,1.24545519]
[1743271106718,1.041,599.95,599.74,0.29003263]
[1743271106719,1.041,599.95,599.79,1.24545519]
[1743271109223,1.041,599.95,599.85,1.24545519]
[1743271110620,1.041,599.95,599.91,1.24545519]
[1743271112124,1.041,599.95,599.89,1.24545519]
[1743271114026,1.041,599.95,599.8,1.24545519]
[1743271114224,1.548,600.06,599.8,1.24545519]
[1743271115626,1.289,600.15,599.8,1.24545519]
[1743271116325,1.289,600.15,599.75,0.29001571]
[1743271117726,1.443,600.14,599.75,0.29001571]
[1743271118628,1.443,600.14,599.69,1.24545519]
[1743271118830,1.443,600.14,599.75,0.29001933]
[1743271119229,1.572,600.13,599.73,1.24545519]
[1743271120522,1.572,600.13,599.69,0.29003384]
[1743271120523,1.572,600.13,599.69,1.53548903]
[1743271121427,1.572,600.13,599.69,1.24545519]
[1743271121727,1.572,600.13,599.69,1.53549024]
[1743271124326,1.572,600.13,599.74,1.24545519]
[1743271126029,1.572,600.13,599.75,1.24545519]
[1743271128131,1.572,600.13,599.63,0.2900423]
[1743271128132,1.572,600.13,599.74,1.24545519]
[1743271129936,1.572,600.13,599.66,1.24545519]
[1743271132331,1.48,600.12,599.63,1.53550837]
[1743271133436,1.48,600.12,599.63,1.24545519]
[1743271133833,1.48,600.12,599.63,1.53549144]
[1743271134534,1.48,600.12,599.66,1.24545519]
[1743271135732,1.068,600.11,599.66,1.24545519]
[1743271136131,1.068,600.11,599.63,0.29003625]
[1743271136332,1.068,600.11,599.64,0.33353345]
[1743271138129,1.068,600.11,599.69,1.24545519]
[1743271139933,1.068,600.11,599.64,1.57898864]
[1743271141742,1.742,600.1,599.64,1.57898864]
[1743271144343,1.742,600.1,599.64,0.33353345]
[1743271145747,1.742,600.1,599.84,1.24545519]
[1743271147344,1.742,600.1,599.74,1.24545519]
[1743271149148,1.742,600.1,599.68,1.24545519]
[1743271149847,1.742,600.1,599.69,0.33350564]
[1743271151344,1.359,600.09,599.69,0.33350564]
[1743271155347,1.545,600.08,599.69,0.33350564]
[1743271159057,3.113,600.08,599.69,0.33350564]
[1743271161650,3.113,600.08,599.86,1.24545519]
[1743271162755,3.113,600.08,599.96,1.24545519]
[1743271164650,3.113,600.08,599.76,1.24545519]
[1743271164854,3.113,600.08,599.77,0.33346116]
[1743271167857,4.044,600.08,599.77,0.33346116]
[1743271172959,4.044,600.08,599.84,1.24545519]
[1743271173560,3.113,600.08,599.84,1.24545519]
[1743271174865,3.113,600.08,599.95,1.24545519]
[1743271178965,3.113,600.08,599.87,1.24545519]
[1743271180067,1.545,600.08,599.87,1.24545519]
[1743271180461,1.545,600.08,599.88,1.24545519]
[1743271182369,1.545,600.08,599.92,1.24545519]
[1743271184572,1.545,600.08,599.95,1.24545519]
[1743271185673,1.545,600.08,599.87,0.28996013]
[1743271185674,1.545,600.08,600.04,1.24545519]
[1743271187980,1.545,600.08,600.06,1.24545519]
[1743271191479,1.545,600.08,599.97,1.24545519]
[1743271194187,1.545,600.08,599.9,0.28995409]
[1743271196490,1.545,600.08,599.88,1.24545519]
[1743271197087,1.545,600.08,599.9,0.28996496]
[1743271198187,1.545,600.08,599.99,1.24545519]
[1743271199591,1.545,600.08,600.05,1.24545519]
[1743271201089,1.545,600.08,599.97,1.49365253]
[1743271203495,1.545,600.08,599.98,1.24267923]
[1743271205093,1.545,600.08,599.87,1.24267923]
[1743271206496,1.545,600.08,599.85,1.24267923]
[1743271207899,1.545,600.08,599.87,1.24267923]
[1743271210100,1.545,600.08,599.8,1.24267923]
[1743271212101,1.545,600.08,599.77,0.33346116]
[1743271216705,1.545,600.08,599.56,1.24267923]
[1743271216902,1.545,600.08,599.6,0.29005922]
[1743271220398,1.545,600.08,599.42,1.24267923]
[1743271220798,1.545,600.08,599.43,0.29011]
[1743271223603,1.545,600.08,599.28,1.24267923]
[1743271223806,1.545,600.08,599.43,0.29011484]
[1743271224212,1.545,600.08,599.41,1.24267923]
[1743271224413,1.545,600.08,599.43,0.29011484]
[1743271226006,1.545,600.08,599.44,1.24267923]
[1743271227414,1.545,600.08,599.43,0.29011]
[1743271228314,2.91,600.08,599.43,0.29011]
[1743271229714,2.91,600.08,599.41,0.33366143]
[1743271230011,2.91,600.08,599.43,0.29011363]
[1743271235526,2.91,600.08,599.41,0.33366143]
[1743271235930,2.91,600.08,599.42,0.29014023]
[1743271238433,2.91,600.08,599.41,0.33366143]
[1743271238825,2.91,600.08,599.42,0.29013298]
[1743271241332,4.612,600.08,599.42,0.29013298]
[1743271241530,4.612,600.08,599.41,0.33366143]
[1743271241725,4.612,600.08,599.42,0.29014023]
[1743271244529,4.612,600.08,599.41,0.33366143]
[1743271249935,4.612,600.08,599.46,1.24267923]
[1743271250142,4.612,600.08,599.47,0.33362803]
[1743271251241,4.612,600.08,599.59,1.24267923]
[1743271251942,1.09227297,600.07,599.59,1.24267923]
[1743271252336,1.09227297,600.06,599.59,1.24267923]
[1743271252944,1.09227297,600.05,599.59,1.24267923]
[1743271253145,1.09227297,600.05,599.47,0.33362803]
[1743271253646,3.067,600.08,599.47,0.33362803]
[1743271256045,4.161,600.08,599.47,0.33362803]
[1743271288465,4.161,600.08,599.57,1.24267923]
[1743271290569,4.161,600.08,599.67,1.24267923]
[1743271292468,4.161,600.08,599.47,0.33362803]
[1743271292863,4.161,600.08,599.55,0.29005559]
[1743271293070,4.161,600.08,599.47,0.33362803]
[1743271293470,4.161,600.08,599.55,0.29006043]
[1743271293666,4.161,600.08,599.47,0.33362803]
[1743271294169,4.161,600.08,599.55,0.29006043]
[1743271294365,4.161,600.08,599.47,0.33362803]
[1743271294570,4.161,600.08,599.55,0.29006043]
[1743271294968,4.161,600.08,599.47,0.33362803]
[1743271295169,4.161,600.08,599.55,0.29006043]
[1743271295565,4.161,600.08,599.47,0.33362803]
[1743271296774,4.161,600.08,599.48,0.29005801]
[1743271296977,4.161,600.08,599.49,0.3336169]
[1743271299880,4.161,600.08,599.56,1.24267923]
[1743271302083,4.161,600.08,599.58,1.24267923]
[1743271303690,4.161,600.08,599.64,1.24267923]
[1743271305789,4.161,600.08,599.51,0.29008098]
[1743271307695,4.161,600.08,599.49,0.3336169]
[1743271307897,4.161,600.08,599.51,0.29007735]
[1743271310297,4.161,600.08,599.54,1.24267923]
[1743271311997,4.161,600.08,599.52,0.29007131]
[1743271313495,4.161,600.08,599.49,0.3336169]
[1743271314896,4.161,600.08,599.5,0.29010033]
[1743271315701,4.161,600.08,599.51,0.33360577]
[1743271319501,4.161,600.08,599.52,1.24267923]
[1743271319801,4.161,600.08,599.53,0.33359464]
[1743271321401,4.161,600.08,599.62,1.24267923]
[1743271321703,4.161,600.08,599.62,1.5762238]
[1743271323101,4.161,600.08,599.68,1.24267923]
[1743271323299,4.161,600.08,599.69,0.33350564]
[1743271324710,4.161,600.08,599.73,1.24267923]
[1743271326606,4.161,600.08,599.77,1.24267923]
[1743271327400,4.161,600.08,599.78,0.3334556]
[1743271333415,4.161,600.08,599.8,1.24267923]
[1743271333612,4.161,600.08,599.81,0.33343892]
[1743271340410,0.66587254,601.31,599.81,0.33343892]
[1743271340613,0.66587254,601.29,599.81,0.33343892]
[1743271340912,4.44726037,601.28,599.81,0.33343892]
[1743271341113,4.44726037,601.27,599.81,0.33343892]
[1743271341318,1.37585187,601.26,599.81,0.33343892]
[1743271341518,1.37585187,601.25,599.81,0.33343892]
[1743271341717,1.37585187,601.24,599.81,0.33343892]
[1743271341917,1.37585187,601.23,599.81,0.33343892]
[1743271342113,1.37585187,601.22,599.81,0.33343892]
[1743271342320,1.37585187,601.21,599.81,0.33343892]
[1743271342518,1.09058639,601.24,599.81,0.33343892]
[1743271342720,1.09058639,601.2,599.81,0.33343892]
[1743271343323,1.09058639,601.19,599.81,0.33343892]
[1743271343513,1.09058639,601.19,599.88,1.24267923]
[1743271343713,1.09058639,601.18,599.88,1.24267923]
[1743271344417,1.018,601.19,599.9,0.33338889]
[1743271345725,1.08479351,601.18,599.9,0.33338889]
[1743271346322,1.08479351,601.18,600.15,1.24267923]
[1743271346523,1.08479351,601.17,600.17,0.33323891]
[1743271347119,1.018,601.19,600.17,0.33323891]
[1743271347528,2.44886511,601.18,600.17,0.33323891]
[1743271347827,1.36609287,601.17,600.17,0.33323891]
[1743271348125,4.41635179,601.16,600.17,0.33323891]
[1743271348426,3.55228794,601.15,600.17,0.33323891]
[1743271348624,3.55228794,601.14,600.17,0.33323891]
[1743271348919,5.08143491,601.13,600.17,0.33323891]
[1743271349228,5.08143491,601.12,600.17,0.33323891]
[1743271349419,5.08143491,601.11,600.17,0.33323891]
[1743271349725,5.08143491,601.1,600.17,0.33323891]
[1743271349929,6.46317571,601.09,600.17,0.33323891]
[1743271350126,6.46317571,601.08,600.17,0.33323891]
[1743271350423,6.46317571,601.07,600.17,0.33323891]
[1743271350622,6.46317571,601.06,600.17,0.33323891]
[1743271350823,6.46317571,601.05,600.17,0.33323891]
[1743271351019,5.08143491,601.04,600.17,0.33323891]
[1743271351226,5.08143491,601.03,600.17,0.33323891]
[1743271351422,1.65570479,601.14,600.17,0.33323891]
[1743271351423,8.56259062,601.02,600.17,0.33323891]
[1743271351619,5.08143491,601.01,600.17,0.33323891]
[1743271351821,4.21776398,601.0,600.17,0.33323891]
[1743271352017,4.21776398,600.99,600.17,0.33323891]
[1743271352218,3.55228794,600.98,600.17,0.33323891]
[1743271352418,3.55228794,600.97,600.17,0.33323891]
[1743271352618,3.55228794,600.96,600.17,0.33323891]
[1743271352818,3.48115571,601.0,600.17,0.33323891]
[1743271353024,1.08277224,600.95,600.17,0.33323891]
[1743271353424,1.08277224,600.94,600.17,0.33323891]
[1743271353823,1.08277224,600.93,600.17,0.33323891]
[1743271354720,1.08277224,600.92,600.17,0.33323891]
[1743271355425,1.08277224,600.91,600.17,0.33323891]
[1743271356017,0.96,600.95,600.17,0.33323891]
[1743271356424,1.36501171,600.94,600.17,0.33323891]
[1743271356627,1.36501171,600.93,600.17,0.33323891]
[1743271356825,1.08208458,600.94,600.17,0.33323891]
[1743271357529,1.08208458,600.93,600.17,0.33323891]
[1743271358222,0.96,600.95,600.17,0.33323891]
[1743271364732,1.08201151,600.94,600.17,0.33323891]
[1743271365426,0.96,600.95,600.17,0.33323891]
[1743271366833,2.149,600.95,600.17,0.33323891]
[1743271370236,3.53,600.95,600.17,0.33323891]
[1743271376141,4.001,600.95,600.17,0.33323891]
[1743271377862,4.001,600.95,600.24,1.24267923]
[1743271378346,1.08655168,600.94,600.24,1.24267923]
[1743271378751,1.08655168,600.93,600.24,1.24267923]
[1743271378946,1.08655168,600.93,600.17,0.33323891]
[1743271379451,3.041,600.95,600.17,0.33323891]
[1743271381352,4.177,600.95,600.34,1.24267923]
[1743271382850,4.177,600.95,600.33,1.24267923]
[1743271383453,4.177,600.95,600.34,0.33314455]
[1743271385955,4.177,600.95,600.37,1.24267923]
[1743271386157,4.177,600.95,600.38,0.33312235]
[1743271387351,4.177,600.95,600.49,1.24267923]
[1743271387555,3.706,600.95,600.5,0.33305578]
[1743271397760,3.706,600.95,600.57,1.24267923]
[1743271397961,3.706,600.95,600.58,0.33301142]
[1743271399663,3.706,600.95,600.62,1.24267923]
[1743271401362,3.706,600.95,600.58,0.33301142]
[1743271404170,3.706,600.95,600.61,1.24267923]
[1743271404669,3.706,600.95,600.62,0.33298924]
[1743271408370,2.57,600.95,600.62,0.33298924]
[1743271419982,2.57,600.95,600.7,1.24267923]
[1743271422287,2.57,600.95,600.71,1.24267923]
[1743271424191,2.57,600.95,600.65,0.28954156]
[1743271424584,2.57,600.95,600.62,1.57566847]
[1743271424788,2.57,600.95,600.66,0.33296706]
[1743271426192,2.57,600.95,600.72,1.24267923]
[1743271427691,2.57,600.95,600.66,0.33296706]
[1743271433300,2.57,600.95,600.69,1.24267923]
[1743271433498,2.57,600.95,600.7,0.33294489]
[1743271435000,2.57,600.95,600.71,1.24267923]
[1743271435200,2.57,600.95,600.72,0.33293381]
[1743271437105,2.57,600.95,600.88,1.24267923]
[1743271437405,1.47,601.01,600.88,1.24267923]
[1743271438606,1.47,601.01,600.75,1.24267923]
[1743271438906,1.47,601.01,600.76,0.33291164]
[1743271440507,1.299,601.0,600.76,0.33291164]
[1743271441306,1.12,600.99,600.76,0.33291164]
[1743271441811,1.12,600.99,600.8,1.24267923]
[1743271442718,1.12,600.99,600.81,0.33288394]
[1743271445614,1.12,600.99,600.96,1.24267923]
[1743271447514,1.12,600.99,600.94,1.24267923]
[1743271452316,1.12,600.99,600.81,0.33288394]
[1743271453518,1.12,600.99,600.61,0.28955842]
[1743271455424,1.412,600.98,600.61,0.28955842]
[1743271457029,1.412,600.98,600.62,0.33298924]
[1743271466731,0.472,600.97,600.62,0.33298924]
[1743271470629,0.905,600.96,600.62,0.33298924]
[1743271474130,1.409,600.95,600.62,0.33298924]
[1743271478035,1.409,600.95,599.96,1.24267923]
[1743271478237,1.409,600.95,600.43,0.28965603]
[1743271478733,1.409,600.95,600.07,1.24267923]
[1743271478934,1.409,600.95,600.43,0.28972235]
[1743271479339,1.409,600.95,600.07,1.24267923]
[1743271479638,1.409,600.95,600.43,0.2897115]
[1743271479838,1.409,600.95,600.07,1.24267923]
[1743271480039,1.37714793,600.94,600.07,1.24267923]
[1743271480339,1.409,600.95,600.33,0.28973562]
[1743271480542,1.409,600.95,600.08,0.33328889]
[1743271480838,1.409,600.95,600.33,0.28973441]
[1743271481240,1.409,600.95,600.08,0.33328889]
[1743271481444,1.409,600.95,600.33,0.28972235]
[1743271481939,1.409,600.95,600.08,0.33328889]
[1743271482136,1.409,600.95,600.33,0.28972235]
[1743271482340,1.409,600.95,600.08,0.33328889]
[1743271482737,1.409,600.95,600.33,0.28972235]
[1743271482936,1.409,600.95,600.08,0.33328889]
[1743271483240,1.409,600.95,600.29,0.28974406]
[1743271483636,1.409,600.95,600.08,0.33328889]
[1743271483835,1.409,600.95,600.28,0.28974647]
[1743271484035,1.37426052,600.94,600.28,0.28974647]
[1743271484239,1.0897762,600.94,600.08,0.33328889]
[1743271484440,1.37352906,600.93,600.08,0.33328889]
[1743271484635,1.37352906,600.92,600.2,0.28975733]
[1743271484832,1.37352906,600.91,600.08,0.33328889]
[1743271485038,2.46330526,600.9,600.08,0.33328889]
[1743271485238,1.37352906,600.89,600.2,0.28976939]
[1743271485537,1.37287352,600.88,600.09,1.24267923]
[1743271485742,1.37287352,600.87,600.2,0.28977301]
[1743271485942,1.0897762,600.86,600.2,0.28977301]
[1743271486141,1.0897762,600.86,600.09,1.24267923]
[1743271486343,1.37287671,600.85,600.16,0.28978387]
[1743271486541,1.37287671,600.84,600.16,0.28978387]
[1743271486741,1.37287671,600.83,600.16,0.28978387]
[1743271486940,2.24085231,600.82,600.16,0.28978387]
[1743271487141,2.24085231,600.81,600.09,1.24267923]
[1743271487344,2.25687896,600.8,600.09,1.24267923]
[1743271487639,6.4903699,600.79,600.09,1.24267923]
[1743271487841,6.4903699,600.78,600.09,1.24267923]
[1743271488041,6.4903699,600.77,600.09,1.24267923]
[1743271488241,6.4903699,600.76,600.08,0.33328889]
[1743271488441,6.48805502,600.75,600.08,0.33328889]
[1743271488637,5.10146654,600.74,600.08,0.33328889]
[1743271488943,5.10146654,600.73,600.08,0.33328889]
[1743271489244,6.48810119,600.72,600.08,0.33328889]
[1743271489442,6.48810119,600.71,600.08,0.33328889]
[1743271489644,6.48810119,600.7,600.08,0.33328889]
[1743271489945,6.48810119,600.69,600.08,0.33328889]
[1743271490143,6.48810119,600.68,600.08,0.33328889]
[1743271490339,5.10146654,600.67,600.08,0.33328889]
[1743271490538,5.10146654,600.66,600.08,0.33328889]
[1743271490746,5.10146654,600.65,600.08,0.33328889]
[1743271490942,5.10146654,600.64,600.08,0.33328889]
[1743271491239,5.09016092,600.63,600.08,0.33328889]
[1743271491547,5.08692346,600.62,599.93,0.28986835]
[1743271491838,5.55418532,600.61,599.93,0.28986835]
[1743271492045,4.22218532,600.6,599.93,0.28986835]
[1743271492245,5.08705897,600.59,599.27,1.24267923]
[1743271492443,5.08705897,600.58,599.27,1.24267923]
[1743271492638,5.08705897,600.57,599.84,0.28999154]
[1743271492944,6.46988952,600.56,599.24,1.24267923]
[1743271493144,5.08705897,600.55,599.8,0.29000604]
[1743271493345,5.08705897,600.54,599.8,0.29000604]
[1743271493545,5.08705897,600.53,599.26,0.33374495]
[1743271493844,5.08705897,600.52,599.8,0.29001088]
[1743271494047,5.08705897,600.51,599.26,0.33374495]
[1743271494247,3.55611813,600.5,599.26,0.33374495]
[1743271494445,3.55611813,600.49,599.26,0.33374495]
[1743271494640,3.49630954,600.5,599.8,0.29000604]
[1743271494641,3.55611813,600.48,599.8,0.29000604]
[1743271494845,3.55611813,600.47,599.26,0.33374495]
[1743271495046,3.55611813,600.46,599.26,0.33374495]
[1743271495248,3.55611813,600.45,599.8,0.29001088]
[1743271495446,1.36773774,600.44,599.26,0.33374495]
[1743271495643,1.36773774,600.43,599.26,0.33374495]
[1743271495842,1.36773774,600.42,599.8,0.29002175]
[1743271496041,1.36773774,600.41,599.26,0.33374495]
[1743271496244,1.36773774,600.4,599.26,0.33374495]
[1743271496442,1.36370699,600.39,599.78,0.29003021]
[1743271496645,3.54440175,600.38,599.26,0.33374495]
[1743271496847,4.40679816,600.37,599.26,0.33374495]
[1743271497048,5.07333634,600.36,599.59,0.29007977]
[1743271497244,5.07333634,600.35,599.26,0.33374495]
[1743271497444,5.07333634,600.34,599.26,0.33374495]
[1743271497646,5.07333634,600.33,599.55,0.29009307]
[1743271497849,5.07333634,600.32,599.26,0.33374495]
[1743271498149,5.07333634,600.31,599.55,0.2900967]
[1743271498350,5.07333634,600.3,599.55,0.2900967]
[1743271498552,5.07333634,600.29,599.26,0.33374495]
[1743271498748,4.21090231,600.28,599.55,0.29010033]
[1743271498947,4.21090231,600.27,599.55,0.29010033]
[1743271499252,3.54440175,600.26,599.26,0.33374495]
[1743271499448,3.54440175,600.25,599.55,0.29008461]
[1743271499650,4.21091408,600.24,599.26,0.33374495]
[1743271499850,7.69694161,600.23,599.26,0.33374495]
[1743271500049,3.54440175,600.22,599.55,0.29010637]
[1743271500246,3.54440175,600.21,599.26,0.33374495]
[1743271500444,3.54440175,600.2,599.26,0.33374495]
[1743271500649,3.54440175,600.19,599.55,0.29011]
[1743271500949,3.54440175,600.18,599.26,0.33374495]
[1743271501145,3.54440175,600.17,599.26,0.33374495]
[1743271501351,3.54440175,600.16,599.48,0.29013056]
[1743271501555,5.07175662,600.15,599.26,0.33374495]
[1743271501751,5.07175662,600.14,599.37,0.2901608]
[1743271502047,5.07175662,600.13,599.37,0.2901608]
[1743271502253,6.94784151,600.12,599.26,0.33374495]
[1743271502453,8.58303087,600.11,599.26,0.33374495]
[1743271502648,1.63518936,600.0,599.26,0.33374495]
[1743271502950,6.44773171,599.99,599.26,0.33374495]
[1743271503254,6.44773171,599.98,599.26,0.33374495]
[1743271503453,6.44773171,599.97,599.26,0.33374495]
[1743271503647,1.65366782,599.95,599.26,0.33374495]
[1743271503853,5.07175662,599.94,599.26,0.33374495]
[1743271504054,5.07175662,599.93,599.26,0.33374495]
[1743271504250,5.07175662,599.92,599.26,0.33374495]
[1743271504451,5.07175662,599.91,599.26,0.33374495]
[1743271504654,5.06866186,599.9,599.26,0.33374495]
[1743271504856,5.06866186,599.89,599.26,0.33374495]
[1743271505157,5.06866186,599.88,599.07,0.2902685]
[1743271505350,5.06866186,599.87,599.07,0.2902685]
[1743271505554,4.40195262,599.86,599.07,0.2902685]
[1743271505750,3.54440175,599.85,597.66,1.24267923]
[1743271505956,3.54440175,599.84,599.07,0.29042596]
[1743271506257,3.54440175,599.83,597.76,0.33458244]
[1743271506450,3.54440175,599.82,597.76,0.33458244]
[1743271506656,3.54440175,599.81,599.07,0.29043565]
[1743271506857,1.36370699,599.8,597.76,0.33458244]
[1743271507057,1.36370699,599.79,597.76,0.33458244]
[1743271507257,1.36370699,599.78,599.07,0.2904405]
[1743271507458,1.36370699,599.77,597.76,0.33458244]
[1743271507657,1.36370699,599.76,597.76,0.33458244]
[1743271507960,1.36370699,599.75,599.07,0.29044535]
[1743271508159,1.36370699,599.74,597.76,0.33458244]
[1743271508356,1.0897762,599.76,599.07,0.29046474]
[1743271508561,1.35085032,599.75,599.07,0.29046474]
[1743271508760,1.35085032,599.74,597.76,0.33458244]
[1743271508961,1.35085032,599.73,597.76,0.33458244]
[1743271509165,1.35085032,599.72,599.07,0.29046474]
[1743271509365,2.80438345,599.75,597.76,0.33458244]
[1743271509567,1.0897762,599.72,597.76,0.33458244]
[1743271509768,1.0897762,599.72,599.07,0.29046838]
[1743271509964,1.0897762,599.71,597.76,0.33458244]
[1743271510369,1.0897762,599.71,599.07,0.29045383]
[1743271510665,0.923,599.82,597.76,0.33458244]
[1743271510864,0.923,599.82,599.03,0.29047929]
[1743271511370,0.923,599.82,597.76,0.33458244]
[1743271511570,0.923,599.82,599.03,0.29046596]
[1743271511772,0.923,599.82,597.76,0.33458244]
[1743271512163,0.923,599.82,599.03,0.29046596]
[1743271512678,0.923,599.82,597.76,0.33458244]
[1743271512865,0.923,599.82,599.03,0.29045383]
[1743271513372,0.923,599.82,597.76,0.33458244]
[1743271513572,0.923,599.82,599.03,0.29044171]
[1743271513770,0.923,599.82,597.76,0.33458244]
[1743271514170,2.368,599.82,599.03,0.29046596]
[1743271514371,2.368,599.82,597.76,0.33458244]
[1743271514770,2.368,599.82,599.03,0.29046596]
[1743271514969,2.368,599.82,597.76,0.33458244]
[1743271515468,2.368,599.82,599.03,0.29046596]
[1743271515772,2.368,599.82,597.76,0.33458244]
[1743271516072,2.368,599.82,599.03,0.29046596]
[1743271516372,2.368,599.82,597.76,0.33458244]
[1743271516574,2.368,599.82,598.99,0.29047565]
[1743271516773,2.368,599.82,597.76,0.33458244]
[1743271517067,2.368,599.82,598.99,0.29046717]
[1743271517469,2.368,599.82,597.76,0.33458244]
[1743271517975,2.841,599.82,598.99,0.29045868]
[1743271518166,2.841,599.82,597.76,0.33458244]
[1743271518369,2.841,599.82,597.77,0.29048535]
[1743271518674,2.841,599.82,597.87,0.33452088]
[1743271521370,2.841,599.82,597.95,1.24267923]
[1743271521569,2.841,599.82,597.97,0.33446493]
[1743271523973,2.841,599.82,598.08,1.24267923]
[1743271524173,2.841,599.82,598.1,0.33439224]
[1743271525674,2.841,599.82,598.16,1.24267923]
[1743271525868,2.841,599.82,598.18,0.33434752]
[1743271526974,2.841,599.82,598.25,1.24267923]
[1743271527169,2.841,599.82,598.27,0.33429722]
[1743271527877,3.90839455,599.82,598.27,0.33429722]
[1743271528670,1.06739455,599.81,598.27,0.33429722]
[1743271529075,1.918,599.82,598.27,0.33429722]
[1743271530671,2.41547087,599.81,598.27,0.33429722]
[1743271530870,1.3469435,599.8,598.27,0.33429722]
[1743271531072,1.3469435,599.79,598.27,0.33429722]
[1743271531276,1.3469435,599.78,598.27,0.33429722]
[1743271531577,1.3469435,599.77,598.27,0.33429722]
[1743271531773,1.3469435,599.76,598.27,0.33429722]
[1743271531980,1.3469435,599.75,598.27,0.33429722]
[1743271532177,1.3469435,599.74,598.27,0.33429722]
[1743271532379,1.35004833,599.73,598.27,0.33429722]
[1743271532578,1.35004833,599.72,598.27,0.33429722]
[1743271532774,1.35004944,599.71,598.27,0.33429722]
[1743271532978,2.77716335,599.75,598.27,0.33429722]
[1743271533175,1.06852737,599.75,598.39,1.24267923]
[1743271533472,1.06852737,599.7,598.39,1.24267923]
[1743271533679,1.35129141,599.75,598.39,1.24267923]
[1743271533878,0.95,599.76,598.41,0.33421901]
[1743271534477,2.42427219,599.75,598.51,1.24267923]
[1743271534679,1.07194635,599.75,598.53,0.334152]
[1743271535078,1.07194635,599.74,598.53,0.334152]
[1743271535475,1.35324066,599.73,598.53,0.334152]
[1743271535676,1.35324066,599.72,598.53,0.334152]
[1743271535875,1.07194635,599.73,598.53,0.334152]
[1743271536077,1.07194635,599.73,598.6,1.24267923]
[1743271536279,1.07194635,599.73,598.62,0.33410176]
[1743271536479,2.42626501,599.72,598.62,0.33410176]
[1743271536676,2.62694635,599.72,598.62,0.33410176]
[1743271536881,1.35433312,599.71,598.62,0.33410176]
[1743271537081,2.42627947,599.7,598.62,0.33410176]
[1743271537276,1.35433312,599.69,598.62,0.33410176]
[1743271537478,1.07194635,599.7,598.62,0.33410176]
[1743271537479,1.35433312,599.68,598.62,0.33410176]
[1743271537680,1.35433312,599.67,598.62,0.33410176]
[1743271537874,1.35433312,599.66,598.62,0.33410176]